bitfinex/quotes_ETHUSD_20250708
["timestamp","ask_amount","ask_price","bid_price","bid_amount"]
[1752000932036,3.80914506,2625.3,2625.2,0.40384361]
[1752000934494,3.80914506,2625.3,2625.2,0.1904]
[1752000934833,3.80914506,2625.3,2625.2,0.40359214]
[1752000935333,3.80902218,2625.4,2625.2,0.40359214]
[1752000935519,3.80902218,2625.4,2625.3,0.21319214]
[1752000936338,0.071176,2625.5,2625.3,0.21319214]
[1752000936637,4.69157432,2625.5,2625.4,0.40359214]
[1752000936948,5.54179937,2625.5,2625.4,0.40359214]
[1752000938022,3.87997432,2625.5,2625.4,0.40359214]
[1752000938225,0.071176,2625.5,2625.4,0.40359214]
[1752000938942,0.071176,2625.5,2625.4,0.40364888]
[1752000939116,3.87997432,2625.5,2625.4,0.40364888]
[1752000941673,0.071176,2626.4,2625.7,0.8075]
[1752000941866,0.071176,2626.4,2626.2,0.8075]
[1752000942031,0.7633,2627.0,2626.4,3.80738455]
[1752000942351,0.7633,2627.0,2626.5,11.96048101]
[1752000942521,6.6423,2627.0,2626.6,0.21324888]
[1752000942848,6.6423,2627.0,2626.7,0.25131946]
[1752000943043,10.44900655,2627.0,2626.8,0.21324888]
[1752000943248,0.832576,2627.3,2626.9,0.21324888]
[1752000943446,3.87740737,2627.3,2627.0,0.21324888]
[1752000943615,3.87740737,2627.3,2626.8,5.92506913]
[1752000943616,3.80640672,2627.2,2627.1,0.21324888]
[1752000943815,17.61183711,2627.2,2627.1,0.21324888]
[1752000944427,17.61683711,2627.2,2627.1,0.21324888]
[1752000944629,10.45980672,2627.2,2627.1,0.21324888]
[1752000945130,10.45880672,2627.2,2627.1,0.21324888]
[1752000945315,10.45880672,2627.2,2626.7,0.03807058]
[1752000945316,3.80678433,2626.9,2626.7,0.03807058]
[1752000945518,3.80678433,2626.9,2626.8,0.21197662]
[1752000946655,4.37417681,2626.9,2626.8,0.21197662]
[1752000947146,3.8072658,2626.6,2626.2,5.888]
[1752000947347,3.80703287,2626.8,2626.3,0.21175285]
[1752000947647,3.80703287,2626.8,2626.4,0.21175285]
[1752000947865,3.80703287,2626.8,2626.5,0.21175285]
[1752000948021,3.80703287,2626.8,2626.6,0.21175285]
[1752000948220,3.80703287,2626.8,2626.7,0.21175285]
[1752000948764,3.80691335,2626.8,2626.7,0.21175285]
[1752000949318,0.071176,2627.3,2627.2,3.80633373]
[1752000949522,0.071176,2627.3,2627.2,17.04053337]
[1752000950021,0.071176,2627.3,2627.2,17.25203425]
[1752000950354,0.071176,2627.3,2627.2,21.05836798]
[1752000951660,0.071176,2627.3,2627.2,21.24796798]
[1752000952339,0.071176,2627.3,2627.2,21.0364671]
[1752000952523,0.071176,2627.3,2627.2,17.23013337]
[1752000952724,0.071176,2627.3,2627.2,21.0364671]
[1752000954025,0.071176,2627.3,2627.2,17.23013337]
[1752000954222,0.071176,2627.3,2627.2,21.79758755]
[1752000954441,0.071176,2627.3,2627.2,17.99125382]
[1752000954826,0.071176,2627.3,2627.2,21.79758755]
[1752000955026,0.073176,2627.3,2627.2,21.79758755]
[1752000955964,0.073176,2627.3,2627.2,21.5864671]
[1752000959030,0.073176,2627.3,2627.2,31.0274541]
[1752000959934,0.073176,2627.3,2627.2,36.5709651]
[1752000960134,0.071176,2628.2,2628.1,10.8278]
[1752000960355,0.071176,2628.2,2628.1,18.17109119]
[1752000960565,0.071176,2628.2,2628.1,22.16572143]
[1752000960861,0.071176,2628.2,2628.1,18.36069119]
[1752000963054,0.071176,2628.2,2628.1,12.48069119]
[1752000963256,0.071176,2628.2,2628.1,8.36269119]
[1752000963641,0.071176,2628.2,2628.1,8.65439228]
[1752000964174,0.071176,2628.2,2628.1,9.0054859]
[1752000964837,3.87606147,2628.2,2628.1,0.54069362]
[1752000965080,3.87606147,2628.2,2628.1,0.1896]
[1752000965745,3.87606147,2628.2,2628.1,6.0716]
[1752000965968,3.87606147,2628.2,2628.1,6.42269362]
[1752000966274,3.87606147,2628.2,2628.1,7.06876816]
[1752000966780,3.87606147,2628.2,2628.1,6.42269362]
[1752000967142,3.87606147,2628.2,2628.1,0.54069362]
[1752000967470,3.87606147,2628.2,2628.1,0.1896]
[1752000967471,4.63826147,2628.2,2628.1,0.1896]
[1752000970770,14.63826147,2628.2,2628.1,0.1896]
[1752000971176,4.63826147,2628.2,2628.1,0.1896]
[1752000972071,3.87606147,2628.2,2628.1,0.1896]
[1752000972286,3.80463404,2628.4,2628.1,0.1896]
[1752000972287,0.011,2628.5,2628.1,0.1896]
[1752000972589,0.011,2628.5,2628.4,0.1896]
[1752000972767,0.011,2628.5,2628.4,6.0726]
[1752000972959,0.011,2628.5,2628.4,7.91889171]
[1752000973156,0.011,2628.5,2628.4,7.88084576]
[1752000973676,0.012776,2628.5,2628.4,7.88084576]
[1752000973893,3.8172272,2628.5,2628.4,6.0726]
[1752000975295,0.012776,2628.5,2628.4,6.0726]
[1752000976575,0.014776,2628.5,2628.4,6.0726]
[1752000977699,3.8192272,2628.5,2628.4,0.1896]
[1752000978003,4.5905272,2628.5,2628.4,0.1896]
[1752000979186,3.8192272,2628.5,2628.4,0.1896]
[1752000980177,0.014776,2628.5,2628.4,0.1896]
[1752000980587,0.014776,2628.5,2628.4,6.0776]
[1752000980888,0.014776,2628.5,2628.4,6.85766068]
[1752000981289,3.8192272,2628.5,2628.4,6.85766068]
[1752000981505,3.8192272,2628.5,2628.4,0.1896]
[1752000981878,4.5869272,2628.5,2628.4,0.1896]
[1752000982507,4.94271448,2628.5,2628.4,0.1896]
[1752000983940,15.08111747,2628.5,2628.4,1e-08]
[1752000984092,3.8047407,2628.3,2628.2,1e-08]
[1752000984293,26.70822798,2628.3,2628.2,1e-08]
[1752000984711,26.71000398,2628.3,2628.2,1e-08]
[1752000986431,26.89960398,2628.3,2628.2,1e-08]
[1752000986634,20.81900398,2628.3,2628.2,1e-08]
[1752000986833,20.81800398,2628.3,2628.2,1e-08]
[1752000987612,13.8065167,2628.3,2628.2,1e-08]
[1752000987818,3.8065167,2628.3,2628.2,0.18960001]
[1752000988147,4.6078167,2628.3,2628.2,0.18960001]
[1752000988293,4.6078167,2628.3,2628.2,1e-08]
[1752000988499,14.6078167,2628.3,2628.2,1e-08]
[1752000989800,20.4978167,2628.3,2628.2,1e-08]
[1752000990427,13.8065167,2628.3,2628.2,1e-08]
[1752000990722,14.6035167,2628.3,2628.2,0.18960001]
[1752000990927,3.8057543,2627.6,2627.5,2.46615795]
[1752000991224,3.80604399,2627.4,2627.3,12.27736181]
[1752000991404,3.80604399,2627.4,2627.3,14.51377034]
[1752000991609,3.80604399,2627.4,2627.3,14.70337034]
[1752000991812,3.80591813,2627.5,2627.3,14.70337034]
[1752000992699,3.80591813,2627.5,2627.4,1.70187087]
[1752000995228,3.80604399,2627.4,2627.3,14.1288794]
[1752000996204,3.80604399,2627.4,2627.3,11.89247087]
[1752000997139,3.80604399,2627.4,2627.3,10.1906]
[1752000997821,4.58454399,2627.4,2627.3,10.1906]
[1752000998715,4.94011344,2627.4,2627.3,10.1906]
[1752000999118,4.94011344,2627.4,2627.3,10.10548458]
[1752000999326,4.58454399,2627.4,2627.3,10.10548458]
[1752000999842,4.58454399,2627.4,2627.3,9.91588458]
[1752001002234,4.77414399,2627.4,2627.3,9.91588458]
[1752001003233,4.77414399,2627.4,2627.0,0.1896]
[1752001003234,3.80647862,2627.1,2627.0,0.1896]
[1752001003439,15.57247862,2627.1,2627.0,0.1896]
[1752001005549,16.33137862,2627.1,2627.0,0.1896]
[1752001005857,26.46978161,2627.1,2627.0,0.1896]
[1752001006062,3.80734818,2626.5,2626.4,0.001]
[1752001006427,3.80734818,2626.5,2626.4,0.1906]
[1752001009032,3.80726055,2626.6,2626.4,0.1906]
[1752001009472,3.80734818,2626.5,2626.4,0.1906]
[1752001012387,4.61926123,2626.7,2626.4,0.1906]
[1752001012388,3.8072669,2626.6,2626.4,0.1906]
[1752001012672,3.80734818,2626.5,2626.4,0.1906]
[1752001017062,10.95924053,2626.5,2626.4,0.1906]
[1752001018782,11.72354053,2626.5,2626.4,0.001]
[1752001023604,16.29964818,2626.5,2626.4,0.001]
[1752001023817,15.53534818,2626.5,2626.4,0.1906]
[1752001024988,11.728,2626.5,2626.4,0.1906]
[1752001025288,15.53534818,2626.5,2626.4,0.1906]
[1752001026692,15.53415154,2626.7,2626.4,0.1906]
[1752001026895,3.80727274,2626.6,2626.4,0.1906]
[1752001027103,3.80727274,2626.6,2626.4,0.001]
[1752001027320,3.80727274,2626.6,2626.5,0.1896]
[1752001031891,11.727,2626.7,2626.5,0.1896]
[1752001032097,15.53408368,2626.7,2626.5,0.1896]
[1752001032498,3.80720322,2626.6,2626.5,0.1896]
[1752001033027,11.727,2626.7,2626.5,0.1896]
[1752001033191,15.53408127,2626.7,2626.5,0.1896]
[1752001033598,15.53407145,2626.7,2626.5,0.1896]
[1752001034049,15.53411907,2626.7,2626.5,0.1896]
[1752001034254,11.727,2626.7,2626.5,0.75960952]
[1752001034457,11.727,2626.7,2626.6,0.8123]
[1752001036448,15.51398869,2626.8,2626.6,0.8123]
[1752001036748,15.51398869,2626.8,2626.6,1.0019]
[1752001037163,11.707,2626.8,2626.6,1.0019]
[1752001038668,15.51392124,2626.8,2626.6,1.0019]
[1752001038839,3.80705828,2626.7,2626.6,1.0019]
[1752001039028,11.707,2626.8,2626.6,1.0019]
[1752001039535,15.51395603,2626.8,2626.6,1.0019]
[1752001039922,11.707,2626.8,2626.6,2.70377087]
[1752001041061,15.50565896,2627.0,2626.6,2.70377087]
[1752001041262,15.50565896,2627.0,2626.6,6.51096202]
[1752001041429,15.50565896,2627.0,2626.9,0.1896]
[1752001042027,11.699,2627.0,2626.9,0.1896]
[1752001043158,3.80642165,2627.2,2626.9,0.1896]
[1752001043459,3.80662352,2627.0,2626.9,0.1896]
[1752001043629,9.65156633,2627.1,2626.7,1.73994145]
[1752001043830,9.65156633,2627.1,2626.9,0.1896]
[1752001044227,0.002,2627.3,2626.9,0.1896]
[1752001044547,0.002,2627.3,2627.0,0.79606623]
[1752001044548,5.846,2627.3,2627.0,0.79606623]
[1752001044752,5.846,2627.3,2627.2,0.1896]
[1752001045057,6.20242421,2627.3,2627.2,0.1896]
[1752001045355,10.00861307,2627.3,2627.2,0.1896]
[1752001045549,10.00853606,2627.3,2627.2,0.1896]
[1752001047162,9.65218886,2627.3,2627.2,0.1896]
[1752001047664,3.80818886,2627.3,2627.2,0.1896]
[1752001047857,9.65318886,2627.3,2627.2,0.1896]
[1752001050183,9.65318886,2627.3,2626.8,0.86906913]
[1752001050184,3.80662352,2627.0,2626.8,1.70187087]
[1752001050386,3.80691335,2626.8,2626.7,1.70187087]
[1752001050872,3.80691335,2626.8,2626.7,1.89147087]
[1752001051064,4.56238886,2627.3,2626.7,1.89147087]
[1752001051065,0.7562,2627.3,2626.7,1.89147087]
[1752001051365,3.80656178,2627.1,2626.7,1.89147087]
[1752001051567,5.842,2627.0,2626.7,1.70187087]
[1752001052065,5.842,2627.0,2626.9,0.1896]
[1752001052236,9.64862352,2627.0,2626.9,0.1896]
[1752001052682,3.80662352,2627.0,2626.9,0.1896]
[1752001052851,9.64962352,2627.0,2626.9,0.1896]
[1752001054379,5.843,2627.0,2626.9,0.1896]
[1752001054887,5.84,2627.0,2626.9,0.1896]
[1752001055168,5.84,2627.1,2626.9,0.1896]
[1752001055863,5.839,2627.1,2626.9,0.1896]
[1752001056170,5.839,2627.1,2626.9,1.89147087]
[1752001057170,9.64549584,2627.1,2626.9,1.89147087]
[1752001058676,5.839,2627.1,2626.9,1.89147087]
[1752001058838,3.80640582,2627.2,2626.9,1.89147087]
[1752001059036,5.837,2627.1,2626.9,1.89147087]
[1752001059260,5.837,2627.1,2626.9,1.70187087]
[1752001059460,5.837,2627.1,2627.0,0.1896]
[1752001059857,0.002,2627.3,2627.0,4.26381818]
[1752001060050,5.838,2627.3,2627.2,0.1896]
[1752001060654,5.838,2627.3,2627.2,1.89147087]
[1752001062469,5.836,2627.3,2627.2,1.89147087]
[1752001062974,9.64218886,2627.3,2627.2,1.89147087]
[1752001063343,9.64218886,2627.3,2627.2,0.1896]
[1752001063559,9.64218886,2627.3,2627.2,1.89147087]
[1752001063768,9.64218886,2627.3,2627.2,0.1896]
[1752001067678,9.99854518,2627.3,2627.2,0.1896]
[1752001068391,4.59192352,2627.0,2626.9,0.001]
[1752001068593,23.40981587,2627.0,2626.9,0.001]
[1752001068800,23.59941587,2627.0,2626.9,0.001]
[1752001068950,22.81411587,2627.0,2626.9,0.001]
[1752001069156,16.44752352,2627.0,2626.9,0.001]
[1752001070284,5.13803878,2627.0,2626.9,0.001]
[1752001070479,10.97103878,2627.0,2626.9,0.001]
[1752001071366,9.99613878,2627.0,2626.9,0.001]
[1752001071590,9.99613878,2627.0,2626.9,0.1906]
[1752001071910,3.80662352,2627.0,2626.9,0.1906]
[1752001072200,9.64062352,2627.0,2626.9,0.1906]
[1752001072400,9.63962352,2627.0,2626.9,0.1906]
[1752001073307,3.80662352,2627.0,2626.9,0.1906]
[1752001073481,9.63962352,2627.0,2626.9,0.1906]
[1752001078307,3.80662352,2627.0,2626.9,0.1906]
[1752001086202,3.80659629,2627.1,2626.9,0.1906]
[1752001086528,5.833,2627.2,2626.9,0.001]
[1752001086529,3.80662352,2627.0,2626.9,0.001]
[1752001086928,3.80662352,2627.0,2626.9,0.1906]
[1752001087094,3.80649216,2627.1,2626.9,0.1906]
[1752001087291,3.80661218,2627.1,2626.9,0.1906]
[1752001087899,3.80662352,2627.0,2626.9,0.1906]
[1752001088099,3.80662352,2627.0,2626.9,0.001]
[1752001088313,3.80662352,2627.0,2626.9,0.1906]
[1752001089703,0.002,2627.3,2626.9,0.1906]
[1752001089902,3.80647889,2627.1,2626.9,0.1906]
[1752001090219,3.80647889,2627.1,2626.9,0.001]
[1752001090531,3.80647889,2627.1,2627.0,0.1896]
[1752001091333,4.57357889,2627.1,2627.0,0.1896]
[1752001091717,3.80662352,2627.0,2626.9,1.70306457]
[1752001092029,3.80662352,2627.0,2626.9,0.1906]
[1752001092030,9.63862352,2627.0,2626.9,0.1906]
[1752001092199,10.42102352,2627.0,2626.9,0.001]
[1752001093409,4.58902352,2627.0,2626.9,0.001]
[1752001093615,10.7776548,2627.0,2626.9,0.001]
[1752001094938,10.77773305,2627.0,2626.9,0.001]
[1752001095140,10.96733305,2627.0,2626.9,0.001]
[1752001096234,20.96733305,2627.0,2626.9,0.001]
[1752001096439,20.96739778,2627.0,2626.9,0.001]
[1752001097044,21.51739778,2627.0,2626.9,1e-08]
[1752001098535,21.51710137,2627.0,2626.9,1e-08]
[1752001105833,3.80763812,2626.3,2626.2,0.001]
[1752001106033,16.26503812,2626.3,2626.2,0.001]
[1752001107232,3.80763812,2626.3,2626.2,0.001]
[1752001107652,9.64063812,2626.3,2626.2,0.1906]
[1752001110130,3.80763812,2626.3,2626.2,0.1906]
[1752001117038,9.64063812,2626.3,2626.2,0.1906]
[1752001118362,7.15189235,2626.8,2626.2,0.1906]
[1752001118363,0.7735,2627.0,2626.2,0.9929]
[1752001118530,3.80691335,2626.8,2626.2,4.80062508]
[1752001118726,3.80712482,2626.7,2626.6,0.9517]
[1752001119352,3.80699471,2626.8,2626.6,0.9517]
[1752001119665,3.80705828,2626.7,2626.6,0.9517]
[1752001120540,0.002,2627.0,2626.6,0.9517]
[1752001120740,0.002,2627.0,2626.9,0.7583]
[1752001121050,0.002,2627.0,2626.9,0.9479]
[1752001121256,0.002,2627.0,2626.9,1.42337901]
[1752001122979,0.002,2627.0,2626.9,3.12308652]
[1752001124256,0.002,2627.0,2626.9,1.42337901]
[1752001126476,0.002,2627.0,2626.9,5.23014744]
[1752001127475,0.002,2627.0,2626.9,1.42337901]
[1752001128082,0.002,2627.0,2626.9,5.23014744]
[1752001128584,0.002,2627.0,2626.9,1.42337901]
[1752001131652,0.002,2627.0,2626.9,5.23014744]
[1752001131860,0.002,2627.0,2626.9,1.42337901]
[1752001134592,0.002,2627.0,2626.9,7.25437901]
[1752001138112,0.002,2627.0,2626.9,6.49607901]
[1752001138420,0.002,2627.0,2626.9,6.0196]
[1752001138619,0.002,2627.0,2626.9,0.1896]
[1752001138620,3.80862352,2627.0,2626.9,0.1896]
[1752001141651,0.002,2627.0,2626.9,0.1896]
[1752001142209,3.80862352,2627.0,2626.9,6.0196]
[1752001143634,0.002,2627.0,2626.9,6.0196]
[1752001143804,3.80862352,2627.0,2626.9,7.48187763]
[1752001144001,0.002,2627.0,2626.9,7.48187763]
[1752001144207,0.002,2627.0,2626.9,9.1777461]
[1752001146148,0.002,2627.0,2626.9,7.48187763]
[1752001147237,0.002,2627.0,2626.9,9.75823944]
[1752001147713,0.002,2627.0,2626.9,7.48187763]
[1752001147907,3.80639515,2627.2,2626.9,7.83606184]
[1752001148125,3.34921797,2627.2,2627.1,1.88949811]
[1752001148326,3.34921797,2627.2,2627.1,8.07268232]
[1752001148832,0.35633768,2627.2,2627.1,7.8250448]
[1752001149039,0.35633768,2627.2,2627.1,6.18318421]
[1752001149340,0.35633768,2627.2,2627.1,2.99611316]
[1752001149530,4.16267141,2627.2,2627.1,0.54378421]
[1752001150044,3.31105837,2627.2,2627.1,0.48012362]
[1752001150541,3.80825786,2627.3,2627.1,0.48012362]
[1752001150739,3.80825786,2627.3,2627.2,0.709477]
[1752001150940,0.002,2627.3,2627.2,0.709477]
[1752001151139,3.80818886,2627.3,2627.2,0.709477]
[1752001151441,0.002,2627.3,2627.2,0.709477]
[1752001151640,3.80818886,2627.3,2627.2,0.709477]
[1752001152043,3.80618886,2627.3,2627.2,0.709477]
[1752001152974,3.80609945,2627.4,2627.2,0.709477]
[1752001153246,3.80604399,2627.4,2627.3,0.35461851]
[1752001154137,3.80599354,2627.5,2627.3,0.35461851]
[1752001154339,3.80599354,2627.5,2627.4,0.35461851]
[1752001154932,0.7559,2627.6,2627.4,0.35461851]
[1752001155134,9.6347978,2627.6,2627.5,0.35461851]
[1752001155343,0.9549,2627.8,2627.5,0.35461851]
[1752001155522,3.80569385,2627.7,2627.6,0.35461851]
[1752001156757,3.80552947,2627.8,2627.6,1.40904036]
[1752001157053,2.93892688,2627.8,2627.7,0.54421851]
[1752001158051,3.80546464,2627.8,2627.7,0.54421851]
[1752001158439,3.80540299,2627.9,2627.7,0.54421851]
[1752001158647,3.80540299,2627.9,2627.8,0.35461851]
[1752001158826,3.43400239,2627.9,2627.8,0.35461851]
[1752001159027,3.34812275,2628.0,2627.8,0.35461851]
[1752001159230,3.34812275,2628.0,2627.9,0.35461851]
[1752001159529,3.80546464,2627.8,2627.7,0.1896]
[1752001159750,3.80546464,2627.8,2627.7,0.54414724]
[1752001159965,3.80517503,2628.0,2627.7,0.54414724]
[1752001160171,3.80524125,2628.0,2627.8,0.35454724]
[1752001160324,3.80524125,2628.0,2627.9,0.35449005]
[1752001160325,3.80525172,2628.0,2627.9,0.35449005]
[1752001160735,3.80525172,2628.0,2627.9,0.35449642]
[1752001161937,3.31008727,2628.0,2627.9,0.70891176]
[1752001162943,3.80708513,2628.1,2627.9,0.70891176]
[1752001163155,0.002,2628.1,2628.0,4.51408679]
[1752001163362,0.002,2628.1,2628.0,6.73018036]
[1752001163854,3.80431701,2628.6,2628.2,3.80486844]
[1752001164155,4.55652183,2628.7,2628.3,0.89851176]
[1752001164330,0.7523,2628.7,2628.4,0.70891176]
[1752001164536,0.7523,2628.7,2628.5,0.70891176]
[1752001164736,4.55647928,2628.7,2628.6,0.70891176]
[1752001165120,3.18554933,2628.7,2628.6,0.70891176]
[1752001165579,3.80404349,2628.8,2628.6,0.70891176]
[1752001165732,3.80404349,2628.8,2628.7,0.70891176]
[1752001166235,3.99364349,2628.8,2628.7,0.70891176]
[1752001166632,0.1896,2628.8,2628.7,0.70891176]
[1752001166832,3.80401737,2628.8,2628.7,0.70727232]
[1752001167454,3.80430245,2628.7,2628.5,0.1896]
[1752001167638,3.80430647,2628.6,2628.5,0.1896]
[1752001167834,3.80430647,2628.6,2628.5,0.89673738]
[1752001168041,3.34732047,2628.7,2628.5,0.89671713]
[1752001168238,3.34732047,2628.7,2628.6,0.70711713]
[1752001168949,2.9760227,2628.7,2628.6,0.70711713]
[1752001170967,2.9760227,2628.7,2628.6,0.70679223]
[1752001171348,3.7914227,2628.7,2628.6,0.70679223]
[1752001172072,0.8154,2628.7,2628.6,0.70679223]
[1752001172369,4.61970245,2628.7,2628.6,0.70679223]
[1752001173070,4.62170245,2628.7,2628.6,0.70679223]
[1752001175282,4.62170245,2628.7,2628.6,0.70647817]
[1752001176179,3.80587679,2627.6,2627.4,0.001]
[1752001176370,3.80589914,2627.5,2627.4,0.1906]
[1752001178342,1.0032,2627.9,2627.4,0.1906]
[1752001178549,3.8057396,2627.7,2627.5,0.55]
[1752001178745,3.8057396,2627.7,2627.6,0.7396]
[1752001179249,3.80553467,2627.8,2627.6,1.5207]
[1752001179445,3.80555275,2627.8,2627.6,1.5207]
[1752001179646,3.80560946,2627.7,2627.6,1.5207]
[1752001179846,3.80560946,2627.7,2627.6,1.75960592]
[1752001180284,3.80553212,2627.8,2627.6,1.75960592]
[1752001180778,3.80491582,2628.2,2627.7,0.55]
[1752001180978,3.80524325,2628.0,2627.7,0.55]
[1752001181374,3.80524325,2628.0,2627.9,0.7396]
[1752001181581,3.80524325,2628.0,2627.9,1.86856]
[1752001183186,3.80517503,2628.0,2627.9,2.63186]
[1752001183357,3.80500617,2628.2,2628.0,0.55]
[1752001183758,3.80500617,2628.2,2628.1,0.7396]
[1752001184471,3.80473498,2628.4,2628.2,0.55]
[1752001184783,3.80456552,2628.5,2628.2,1.62396]
[1752001185083,3.80456552,2628.5,2628.3,0.1896]
[1752001185282,3.80447146,2628.5,2628.4,0.829]
[1752001185468,3.80447146,2628.5,2628.4,1.0186]
[1752001186165,3.80447146,2628.5,2628.4,0.1896]
[1752001189322,3.80629363,2628.7,2628.4,0.1896]
[1752001189582,3.80434425,2628.6,2628.4,0.1896]
[1752001190893,3.8044512,2628.5,2628.4,0.7396]
[1752001192659,3.80517503,2628.0,2627.9,2.26481776]
[1752001192853,3.80517503,2628.0,2627.8,2.26481776]
[1752001193058,3.80517503,2628.0,2627.9,0.7396]
[1752001193590,3.80517503,2628.0,2627.9,0.1896]
[1752001193898,3.80531983,2627.9,2627.8,2.26481776]
[1752001194190,3.80531983,2627.9,2627.8,0.1896]
[1752001197494,3.80531983,2627.9,2627.8,0.18143101]
[1752001200572,3.80531983,2627.9,2627.8,1e-08]
[1752001200894,10.64411983,2627.9,2627.8,1e-08]
[1752001201411,10.45451983,2627.9,2627.8,1e-08]
[1752001202066,3.80531983,2627.9,2627.8,1e-08]
[1752001202389,3.80531983,2627.9,2627.8,0.73960001]
[1752001202764,3.80524288,2628.0,2627.8,0.94861001]
[1752001202997,3.80531983,2627.9,2627.8,0.94861001]
[1752001203307,3.80508425,2628.1,2627.8,0.94861001]
[1752001203476,3.80531296,2628.0,2627.8,0.94861001]
[1752001203800,3.80508425,2628.1,2627.9,0.55]
[1752001203801,3.80504292,2628.1,2627.9,0.55]
[1752001204094,3.80503509,2628.1,2627.9,1.914411]
[1752001204293,3.80517503,2628.0,2627.9,0.7396]
[1752001205078,3.80509652,2628.1,2627.9,0.7396]
[1752001205372,3.80517503,2628.0,2627.9,0.7396]
[1752001205904,3.80531983,2627.9,2627.8,1e-08]
[1752001206106,3.80531983,2627.9,2627.8,0.18960001]
[1752001207494,17.54491218,2627.9,2627.8,1e-08]
[1752001209197,4.57230946,2627.7,2627.6,1e-08]
[1752001209412,17.54820181,2627.7,2627.6,1e-08]
[1752001210788,4.57230946,2627.7,2627.6,1e-08]
[1752001211187,3.80560946,2627.7,2627.6,1e-08]
[1752001211516,9.62960946,2627.7,2627.6,1e-08]
[1752001211918,9.63060946,2627.7,2627.6,1e-08]
[1752001212842,3.80560946,2627.7,2627.6,1e-08]
[1752001213019,4.57230946,2627.7,2627.6,1e-08]
[1752001213543,4.76190946,2627.7,2627.6,1e-08]
[1752001214205,3.80589914,2627.5,2627.4,1e-08]
[1752001214409,10.39759914,2627.5,2627.4,1e-08]
[1752001215000,10.58719914,2627.5,2627.4,1e-08]
[1752001215644,9.63089914,2627.5,2627.4,1e-08]
[1752001216729,3.80589914,2627.5,2627.4,1e-08]
[1752001216934,9.63089914,2627.5,2627.4,1e-08]
[1752001219142,9.82049914,2627.5,2627.4,1e-08]
[1752001220037,3.99549914,2627.5,2627.4,1e-08]
[1752001220206,10.60879914,2627.5,2627.4,1e-08]
[1752001220535,20.96432634,2627.5,2627.4,1e-08]
[1752001221238,15.13932634,2627.5,2627.4,1e-08]
[1752001221440,20.96432634,2627.5,2627.4,1e-08]
[1752001222253,5.13932634,2627.5,2627.4,1e-08]
[1752001222437,10.96432634,2627.5,2627.4,1e-08]
[1752001222642,5.13932634,2627.5,2627.4,1e-08]
[1752001222844,10.96432634,2627.5,2627.4,1e-08]
[1752001224149,10.96429231,2627.5,2627.4,1e-08]
[1752001225349,20.96429231,2627.5,2627.4,1e-08]
[1752001229027,3.80734818,2626.5,2626.4,0.001]
[1752001229221,9.82294818,2626.5,2626.4,0.001]
[1752001229858,4.6373831,2626.2,2626.1,1e-08]
[1752001230153,10.4633831,2626.2,2626.1,1e-08]
[1752001230658,9.6337831,2626.2,2626.1,1e-08]
[1752001231057,3.8077831,2626.2,2626.1,1e-08]
[1752001231263,9.6337831,2626.2,2626.1,1e-08]
[1752001233727,3.8077831,2626.2,2626.1,1e-08]
[1752001234159,9.6347831,2626.2,2626.1,1e-08]
[1752001234573,3.8077831,2626.2,2626.1,1e-08]
[1752001234783,3.8077831,2626.2,2626.1,0.75670001]
[1752001234978,3.8077831,2626.2,2626.1,0.94630001]
[1752001234979,9.6357831,2626.2,2626.1,0.94630001]
[1752001236242,0.1896,2626.6,2626.1,0.94630001]
[1752001236578,3.80751261,2626.4,2626.1,0.94630001]
[1752001236880,0.1896,2626.6,2626.2,0.55]
[1752001237091,9.63401329,2626.8,2626.4,0.55]
[1752001237305,3.80713028,2626.7,2626.5,0.1896]
[1752001237459,3.80720322,2626.6,2626.5,0.1896]
[1752001237658,3.80749314,2626.4,2626.3,0.7567]
[1752001238362,3.80749314,2626.4,2626.3,0.9463]
[1752001239297,5.827,2626.6,2626.3,1.4963]
[1752001239505,5.828,2626.6,2626.4,0.55]
[1752001239707,9.63520454,2626.6,2626.5,0.1896]
[1752001239918,3.807134,2626.7,2626.5,0.1896]
[1752001240100,3.80720322,2626.6,2626.5,0.1896]
[1752001240608,3.80713897,2626.7,2626.5,0.1896]
[1752001240777,9.63613897,2626.7,2626.5,0.1896]
[1752001241299,3.80720322,2626.6,2626.5,0.1896]
[1752001242709,0.1896,2627.0,2626.6,0.55]
[1752001242895,3.80689026,2626.9,2626.6,1.3112]
[1752001243096,3.8058696,2627.6,2626.6,1.3112]
[1752001243097,0.7829,2627.7,2627.0,1.3112]
[1752001243313,5.23802487,2627.7,2627.0,1.3112]
[1752001243527,3.80618886,2627.3,2627.2,0.1896]
[1752001244978,3.80671591,2627.0,2626.8,0.8133]
[1752001245184,3.80676843,2626.9,2626.8,1.3633]
[1752001245591,3.80676843,2626.9,2626.8,1.0029]
[1752001246285,3.80720322,2626.6,2626.5,2.51267971]
[1752001246484,3.80720322,2626.6,2626.5,1.88852843]
[1752001246703,3.80720322,2626.6,2626.5,0.1896]
[1752001248111,3.80720322,2626.6,2626.5,1.88852843]
[1752001248517,0.1896,2627.0,2626.6,0.7934]
[1752001248716,3.80705828,2626.7,2626.6,3.04232843]
[1752001249108,3.80705828,2626.7,2626.6,3.23192843]
[1752001250204,3.80705828,2626.7,2626.6,1.533]
[1752001250595,3.80720322,2626.6,2626.5,1.69892843]
[1752001254030,9.8373831,2626.2,2626.1,1e-08]
[1752001254997,9.64855526,2626.4,2626.1,2.4699758]
[1752001255197,0.764,2626.7,2626.1,2.4699758]
[1752001255198,3.99690295,2626.6,2626.1,2.6595758]
[1752001255527,3.80746713,2626.5,2626.4,0.1896]
[1752001256037,3.80730295,2626.6,2626.4,0.1896]
[1752001256038,3.80721698,2626.6,2626.4,0.1896]
[1752001256237,9.64986491,2626.9,2626.5,0.7791]
[1752001256444,3.80686491,2626.9,2626.7,0.1896]
[1752001256613,3.80698382,2626.8,2626.7,0.1896]
[1752001259744,3.80776289,2626.3,2626.2,0.1896]
[1752001259905,3.80755057,2626.4,2626.2,0.1896]
[1752001260109,3.80763812,2626.3,2626.2,0.1896]
[1752001260505,3.8077831,2626.2,2626.1,1e-08]
[1752001261240,3.8077831,2626.2,2626.1,1.70293173]
[1752001262750,3.8077831,2626.2,2626.1,1e-08]
[1752001264454,9.8413831,2626.2,2626.1,1e-08]
[1752001269340,3.8077831,2626.2,2626.1,1e-08]